fUSD/lending_fUSD_20260429
["ID","MTS","AMOUNT","RATE_DAILY","PERIOD"]
[421318861,1777426256973,152.0,8.874e-05,7]
[421318862,1777426271132,170.0,8.874e-05,3]
[421318863,1777426314129,150.0,0.0001232,30]
[421318864,1777426314477,150.0,0.0001364,30]
[421318865,1777426314825,150.0,0.0001496,30]
[421318869,1777426708584,2000.0,8.84e-05,3]
[421318871,1777426993903,-300.0,8.662e-05,2]
[421318872,1777426993936,-1200.0,8.662e-05,2]
[421318873,1777426993968,-259.98774075,8.701e-05,2]
[421318874,1777426994000,-300.0,8.738e-05,2]
[421318875,1777427009093,-4817.27267441,8.739e-05,2]
[421318876,1777427009172,-10000.01,8.739e-05,2]
[421318877,1777427009295,-10000.01,8.739e-05,2]
[421318878,1777427009412,-10000.01,8.739e-05,2]
[421318879,1777427009550,-10000.01,8.739e-05,2]
[421318880,1777427009695,-10000.01,8.739e-05,2]
[421318881,1777427009804,-10000.01,8.739e-05,2]
[421318882,1777427009927,-10000.01,8.739e-05,2]
[421318883,1777427010055,-10000.01,8.739e-05,2]
[421318884,1777427010177,-10000.01,8.739e-05,2]
[421318885,1777427010623,-10000.01,8.739e-05,2]
[421318886,1777427010643,-10000.01,8.739e-05,2]
[421318887,1777427010671,-10000.01,8.739e-05,2]
[421318888,1777427010686,-10000.01,8.739e-05,2]
[421318889,1777427010731,-10000.01,8.739e-05,2]
[421318890,1777427015128,-10000.01,8.739e-05,2]
[421318891,1777427015245,-10000.01,8.739e-05,2]
[421318892,1777427015379,-10000.01,8.739e-05,2]
[421318893,1777427015482,-10000.01,8.739e-05,2]
[421318894,1777427015614,-10000.01,8.739e-05,2]
[421318895,1777427015740,-10000.01,8.739e-05,2]
[421318896,1777427015846,-10000.01,8.739e-05,2]
[421318897,1777427015956,-10000.01,8.739e-05,2]
[421318898,1777427045811,170.0,8.739e-05,3]
[421318899,1777427142092,2000.0,9e-05,4]
[421318900,1777427154705,1006.76,9e-05,5]
[421318914,1777427431848,-300.0,8.738e-05,2]
[421318915,1777427431859,-189.44772199,8.738e-05,2]
[421318916,1777427431953,-110.55227801,8.738e-05,2]
[421318917,1777427431963,-300.0,8.738e-05,2]
[421318918,1777427431975,-1200.0,8.738e-05,2]
[421318919,1777427431986,-1709.21801471,8.739e-05,2]
[421318920,1777427432000,-4220.58331088,8.739e-05,2]
[421318921,1777427432011,-1506.5169,8.739e-05,2]
[421318922,1777427432021,-484.27175358,8.739e-05,2]
[421318923,1777427432031,-194.88616299,8.739e-05,2]
[421318924,1777427432041,-4813.4721,8.74e-05,2]
[421318925,1777427432051,-758.3328805,8.771e-05,2]
[421318926,1777427432062,-2000.0,8.8e-05,2]
[421318927,1777427432074,-1997.1459,8.822e-05,2]
[421318928,1777427432085,-1399.85402037,8.829e-05,2]
[421318929,1777427432096,-3539.28992609,8.838e-05,2]
[421318930,1777427432106,-150.0,8.838e-05,2]
[421318932,1777427432120,-114290.18084758,8.839e-05,2]
[421318934,1777427432133,-1359.35465984,8.839e-05,2]
[421318936,1777427432145,-781.51955281,8.839e-05,2]
[421318939,1777427432156,-501.52740981,8.839e-05,2]
[421318963,1777427432559,-7388.76061846,8.839e-05,2]
[421318964,1777427432571,-273.70466261,8.839e-05,2]
[421318965,1777427432581,-5185.51719579,8.839e-05,2]
[421318972,1777427439933,-2372.17220932,8.739e-05,2]
[421318973,1777427439946,-618.6790189,8.739e-05,2]
[421318974,1777427439959,-8310.84005165,8.739e-05,2]
[421318975,1777427439986,-399.25398765,8.739e-05,2]
[421318976,1777427440039,-14619.42564278,8.739e-05,2]
[421318977,1777427440052,-1000.0,8.739e-05,2]
[421318978,1777427440092,-16339.72992309,8.739e-05,2]
[421318979,1777427440105,-496.19290314,8.739e-05,2]
[421318980,1777427440200,-2041.44350403,8.739e-05,2]
[421318981,1777427440211,-8503.8605156,8.739e-05,2]
[421318985,1777427440421,-228894.09275438,8.739e-05,2]
[421318986,1777427440480,-2190.3681756,8.739e-05,2]
[421319028,1777427443223,-335.04991627,8.739e-05,2]
[421319029,1777427443235,-4246.69062289,8.739e-05,2]
[421319035,1777427448188,-2377.91539343,8.739e-05,2]
[421319036,1777427448244,-5979.47346009,8.739e-05,2]
[421319037,1777427448564,-2882.48510104,8.739e-05,2]
[421319038,1777427448620,-1533.53661632,8.739e-05,2]
[421319039,1777427448631,-102765.44915086,8.739e-05,2]
[421319040,1777427448675,-47892.81090496,8.739e-05,2]
[421319041,1777427448732,-350.625,8.739e-05,2]
[421319044,1777427465584,178.0,8.739e-05,3]
[421319045,1777427469551,-300.0,8.738e-05,2]
[421319046,1777427469584,-300.0,8.738e-05,2]
[421319047,1777427469615,-150.0,8.738e-05,2]
[421319048,1777427470747,151.0,8.736e-05,2]
[421319049,1777427471502,157.80595334,8.736e-05,2]
[421319050,1777427478709,-10000.01,8.739e-05,2]
[421319051,1777427478910,-10000.01,8.739e-05,2]
[421319052,1777427479030,-10000.01,8.739e-05,2]
[421319053,1777427479134,-10000.01,8.739e-05,2]
[421319054,1777427479250,-10000.01,8.739e-05,2]
[421319055,1777427479406,-10000.01,8.739e-05,2]
[421319056,1777427479515,-10000.01,8.739e-05,2]
[421319057,1777427479627,-10000.01,8.739e-05,2]
[421319058,1777427479781,-10000.01,8.739e-05,2]
[421319059,1777427479901,-10000.01,8.739e-05,2]
[421319060,1777427480009,-10000.01,8.739e-05,2]
[421319061,1777427480128,-10000.01,8.739e-05,2]
[421319062,1777427480254,-10000.01,8.739e-05,2]
[421319063,1777427480393,-10000.01,8.739e-05,2]
[421319064,1777427480498,-10000.01,8.739e-05,2]
[421319065,1777427484712,-10000.01,8.739e-05,2]
[421319066,1777427484840,-10000.01,8.739e-05,2]
[421319067,1777427490782,-4175.446,8.564e-05,2]
[421319068,1777427490808,-1649.118,8.564e-05,2]
[421319069,1777427490898,-403.845,8.564e-05,2]
[421319070,1777427490978,-9192.32,8.739e-05,2]
[421319071,1777427491009,-10000.01,8.739e-05,2]
[421319072,1777427491120,-10000.01,8.739e-05,2]
[421319073,1777427491244,-10000.01,8.739e-05,2]
[421319074,1777427491359,-10000.01,8.739e-05,2]
[421319075,1777427491610,-10000.01,8.739e-05,2]
[421319076,1777427491719,-10000.01,8.739e-05,2]
[421319077,1777427492633,-10000.01,8.739e-05,2]
[421319078,1777427492647,-10000.01,8.739e-05,2]
[421319079,1777427492663,-10000.01,8.739e-05,2]
[421319080,1777427492688,-10000.01,8.739e-05,2]
[421319081,1777427492705,-10000.01,8.739e-05,2]
[421319082,1777427492720,-10000.01,8.739e-05,2]
[421319083,1777427493106,-10000.01,8.739e-05,2]
[421319084,1777427514828,-10000.01,8.739e-05,2]
[421319085,1777427514952,-10000.01,8.739e-05,2]
[421319086,1777427515052,-10000.01,8.739e-05,2]
[421319087,1777427515145,-10000.01,8.739e-05,2]
[421319088,1777427515238,-10000.01,8.739e-05,2]
[421319089,1777427515364,-10000.01,8.739e-05,2]
[421319090,1777427515454,-10000.01,8.739e-05,2]
[421319091,1777427515554,-10000.01,8.739e-05,2]
[421319092,1777427515662,-10000.01,8.739e-05,2]
[421319093,1777427517898,-10000.01,8.739e-05,2]
[421319094,1777427536061,-1000.0,8.738e-05,2]
[421319095,1777427536094,-300.0,8.738e-05,2]
[421319096,1777427536124,-250.0,8.738e-05,2]
[421319097,1777427536190,-6900.01,8.739e-05,2]
[421319098,1777427550694,-10000.01,8.739e-05,2]
[421319099,1777427550806,-10000.01,8.739e-05,2]
[421319100,1777427550904,-10000.01,8.739e-05,2]
[421319101,1777427551042,-10000.01,8.739e-05,2]
[421319102,1777427551167,-10000.01,8.739e-05,2]
[421319103,1777427560048,-10000.01,8.739e-05,2]
[421319104,1777427560383,-10000.01,8.739e-05,2]
[421319105,1777427560603,-10000.01,8.739e-05,2]
[421319106,1777427560721,-10000.01,8.739e-05,2]
[421319107,1777427560825,-10000.01,8.739e-05,2]
[421319108,1777427572143,-10000.01,8.739e-05,2]
[421319109,1777427572277,-10000.01,8.739e-05,2]
[421319110,1777427572395,-10000.01,8.739e-05,2]
[421319111,1777427572512,-10000.01,8.739e-05,2]
[421319112,1777427575155,-10000.01,8.739e-05,2]
[421319113,1777427590363,-500.0,8.638e-05,2]
[421319114,1777427590393,-300.0,8.738e-05,2]
[421319115,1777427590441,-8400.01,8.739e-05,2]
[421319116,1777427590855,-10000.01,8.739e-05,2]
[421319117,1777427593238,-10000.01,8.739e-05,2]
[421319118,1777427596293,-10000.01,8.739e-05,2]
[421319119,1777427596400,-10000.01,8.739e-05,2]
[421319120,1777427599345,-10000.01,8.739e-05,2]
[421319121,1777427602288,-10000.01,8.739e-05,2]
[421319122,1777427605322,-10000.01,8.739e-05,2]
[421319123,1777427608422,-10000.01,8.739e-05,2]
[421319124,1777427611404,-10000.01,8.739e-05,2]
[421319125,1777427617419,-10000.01,8.739e-05,2]
[421319126,1777427652753,-150.0,8.738e-05,2]
[421319127,1777427652779,-300.0,8.738e-05,2]
[421319128,1777427652808,-50.00430268,8.739e-05,2]
[421319129,1777427657733,-716.62723011,8.739e-05,2]
[421319130,1777427665480,-216.62626128,8.739e-05,2]
[421319131,1777427673855,-180.69662149,8.738e-05,2]
[421319132,1777427675813,-391.60345209,8.738e-05,2]
[421319133,1777427678599,-172.0255236,8.738e-05,2]
[421319134,1777427948163,-500.0,8.638e-05,2]
[421319135,1777427955839,-1455.1632,8.639e-05,2]
[421319136,1777427956291,-780.87764666,8.729e-05,2]
[421319137,1777427956324,-5000.01,8.729e-05,2]
[421319138,1777427956515,-5000.01,8.729e-05,2]
[421319139,1777427956659,-5000.01,8.729e-05,2]
[421319140,1777427956978,-5000.01,8.729e-05,2]
[421319141,1777427957087,-2049.21930607,8.729e-05,2]
[421319142,1777427957119,-445.89698504,8.738e-05,2]
[421319143,1777427957158,-9.77741778,8.738e-05,2]
[421319144,1777427957202,-1200.0,8.738e-05,2]
[421319145,1777427957233,-300.0,8.738e-05,2]
[421319146,1777427957262,-300.0,8.738e-05,2]
[421319147,1777427957293,-300.0,8.738e-05,2]
[421319148,1777427957323,-150.0,8.738e-05,2]
[421319149,1777427963749,300.31539057,8.721e-05,2]
[421319154,1777428422879,-211.09,8.398e-05,2]
[421319155,1777428422913,-201.87,8.464e-05,2]
[421319156,1777428422942,-199.87,8.464e-05,2]
[421319157,1777428423030,-3474.03460943,8.595e-05,2]
[421319158,1777428423062,-1978.61859057,8.595e-05,2]
[421319159,1777428423093,-300.0,8.635e-05,2]
[421319160,1777428423145,-442.77281886,8.636e-05,2]
[421319161,1777428423183,-757.22718114,8.636e-05,2]
[421319162,1777428423214,-300.0,8.636e-05,2]
[421319163,1777428423244,-1173.0,8.637e-05,2]
[421319164,1777428423273,-239.55563772,8.637e-05,2]
[421319165,1777428423357,-60.44436228,8.637e-05,2]
[421319166,1777428423392,-5000.01,8.638e-05,2]
[421319167,1777428423420,-5000.01,8.638e-05,2]
[421319168,1777428423503,-5000.01,8.638e-05,2]
[421319169,1777428423618,-104.04533429,8.638e-05,2]
[421319170,1777428423649,-150.0,8.638e-05,2]
[421319171,1777428425757,4491.91933142,8.539e-05,2]
[421319172,1777428425806,-508.09066858,8.539e-05,2]
[421319173,1777428426108,-5000.01,8.539e-05,2]
[421319174,1777428426237,-5000.01,8.539e-05,2]
[421319175,1777428426636,-5000.01,8.539e-05,2]
[421319176,1777428426662,-5000.01,8.539e-05,2]
[421319177,1777428426700,-5000.01,8.539e-05,2]
[421319192,1777428573828,350.0,8.831e-05,5]
[421319195,1777428632000,-300.0,8.537e-05,2]
[421319196,1777428632012,-150.0,8.537e-05,2]
[421319197,1777428632025,-111.36,8.538e-05,2]
[421319198,1777428632048,-138.64,8.538e-05,2]
[421319199,1777428632060,-482.0,8.538e-05,2]
[421319200,1777428632070,-300.0,8.538e-05,2]
[421319201,1777428632082,-1077.11299004,8.538e-05,2]
[421319202,1777428632095,-122.88700996,8.538e-05,2]
[421319203,1777428632105,-300.0,8.538e-05,2]
[421319204,1777428632115,-342.10772772,8.539e-05,2]
[421319205,1777428632155,-697893.15406521,8.539e-05,2]
[421319206,1777428632167,-52671.61498712,8.539e-05,2]
[421319207,1777428632179,-229125.54215647,8.539e-05,2]
[421319208,1777428632191,-51273.97171684,8.539e-05,2]
[421319209,1777428632202,-1254.41808677,8.539e-05,2]
[421319216,1777428638226,-611.85130665,8.539e-05,2]
[421319217,1777428638279,-458.21523207,8.539e-05,2]
[421319218,1777428638291,-677.36541331,8.539e-05,2]
[421319219,1777428638303,-956.79071888,8.539e-05,2]
[421319276,1777428640488,-103850.60474922,8.539e-05,2]
[421319277,1777428640726,-826.68742854,8.539e-05,2]
[421319284,1777428643481,-18004.34212733,8.539e-05,2]
[421319285,1777428643494,-1054.0,8.539e-05,2]
[421319286,1777428643590,-289.06591081,8.539e-05,2]
[421319395,1777428646332,-513.10395891,8.539e-05,2]
[421319396,1777428646344,-3523.8116,8.539e-05,2]
[421319397,1777428646387,-7157.45489711,8.539e-05,2]
[421319399,1777428646868,-1595.25,8.539e-05,2]
[421319401,1777428646882,-2485.95076643,8.539e-05,2]
[421319462,1777428893776,-5000.01,8.178e-05,2]
[421319463,1777428893965,-452.6432,8.178e-05,2]
[421319464,1777428893996,-256.0,8.178e-05,2]
[421319465,1777428894047,-3582.7236,8.288e-05,2]
[421319466,1777428894082,-477.64264995,8.288e-05,2]
[421319467,1777428894114,-1200.0,8.296e-05,2]
[421319468,1777428894147,-300.0,8.297e-05,2]
[421319469,1777428894179,-500.0,8.298e-05,2]
[421319470,1777428894270,-205.56,8.348e-05,2]
[421319471,1777428894301,-250.0,8.378e-05,2]
[421319472,1777428894336,-205.56,8.378e-05,2]
[421319473,1777428894370,-259.98774075,8.408e-05,2]
[421319474,1777428894401,-256.95,8.437e-05,2]
[421319475,1777428894433,-151.0,8.536e-05,2]
[421319476,1777428894465,-157.80595334,8.536e-05,2]
[421319477,1777428894495,-500.0,8.538e-05,2]
[421319478,1777428901143,300.0,8.537e-05,2]
[421319479,1777428901180,300.0,8.537e-05,2]
[421319480,1777428901212,426.28261182,8.537e-05,2]
[421319481,1777428901236,773.71738818,8.537e-05,2]
[421319482,1777428901465,300.0,8.537e-05,2]
[421319483,1777428901876,150.0,8.537e-05,2]
[421319484,1777429241656,-300.31539057,8.422e-05,2]
[421319485,1777429241682,-259.0,8.422e-05,2]
[421319486,1777429241706,-187.028192,8.427e-05,2]
[421319487,1777429244363,-200.0,8.427e-05,2]
[421319488,1777429246512,-41.971808,8.427e-05,2]
[421319489,1777429246538,-215.028192,8.427e-05,2]
[421319490,1777429247965,-208.39654791,8.427e-05,2]
[421319491,1777429249931,-258.39654791,8.427e-05,2]
[421319492,1777429251971,-277.9744764,8.427e-05,2]
[421319493,1777429373355,-240.20423578,8.427e-05,2]
[421319494,1777429373386,-300.0,8.427e-05,2]
[421319495,1777429373416,-300.0,8.427e-05,2]
[421319496,1777429373447,-259.0,8.427e-05,2]
[421319497,1777429373651,-570.39729266,8.428e-05,2]
[421319498,1777429373696,-5000.01,8.428e-05,2]
[421319499,1777429373712,-5000.01,8.428e-05,2]
[421319500,1777429373747,-5000.01,8.428e-05,2]
[421319501,1777429376161,-5000.01,8.428e-05,2]
[421319502,1777429376281,-2259.69966007,8.428e-05,2]
[421319503,1777429376313,-150.0,8.437e-05,2]
[421319504,1777429376364,-180.61067986,8.437e-05,2]
[421319505,1777429376404,-35.44690623,8.437e-05,2]
[421319506,1777429376433,-769.28158754,8.438e-05,2]
[421319507,1777429376476,-3390.55301246,8.438e-05,2]
[421319508,1777429376562,-5000.01,8.438e-05,2]
[421319517,1777429829892,-308.1479148,8.337e-05,2]
[421319518,1777429829931,-2095.09877994,8.337e-05,2]
[421319519,1777429829971,-193.51661052,8.337e-05,2]
[421319520,1777429830115,-2288.61539046,8.337e-05,2]
[421319521,1777429830159,-422.77921908,8.337e-05,2]
[421319522,1777429830258,-1865.83617138,8.337e-05,2]
[421319523,1777429830302,-1268.33765724,8.337e-05,2]
[421319524,1777429830384,-1020.27773322,8.337e-05,2]
[421319525,1777429830421,-670.8391431,8.337e-05,2]
[421319526,1777429830463,-1617.77624736,8.337e-05,2]
[421319536,1777429832644,-432.36088992,8.337e-05,2]
[421319538,1777429832658,-362.36399931,8.337e-05,2]
[421319539,1777429832670,-1493.89050123,8.337e-05,2]
[421319541,1777429832680,-2288.61539046,8.337e-05,2]
[421319543,1777429832689,-691.67033824,8.337e-05,2]
[421319545,1777429832701,-1596.94505222,8.337e-05,2]
[421319547,1777429832711,-2288.61539046,8.337e-05,2]
[421319549,1777429832721,-2288.61539046,8.337e-05,2]
[421319551,1777429832732,-2288.61539046,8.337e-05,2]
[421319554,1777429832742,-2288.61539046,8.337e-05,2]
[421319556,1777429832752,-2288.61539046,8.337e-05,2]
[421319558,1777429832762,-2288.61539046,8.337e-05,2]
[421319560,1777429832772,-2288.61539046,8.337e-05,2]
[421319562,1777429832782,-2288.61539046,8.337e-05,2]
[421319564,1777429832791,-2288.61539046,8.337e-05,2]
[421319566,1777429832801,-2288.61539046,8.337e-05,2]
[421319567,1777429832811,-2288.61539046,8.337e-05,2]
[421319569,1777429832821,-2288.61539046,8.337e-05,2]
[421319571,1777429832830,-2288.61539046,8.337e-05,2]
[421319573,1777429832840,-2288.61539046,8.337e-05,2]
[421319575,1777429832850,-2288.61539046,8.337e-05,2]
[421319576,1777429832860,-2288.61539046,8.337e-05,2]
[421319577,1777429832870,-2288.61539046,8.337e-05,2]
[421319578,1777429832880,-2288.61539046,8.337e-05,2]
[421319579,1777429832892,-2288.61539046,8.337e-05,2]
[421319580,1777429832901,-2288.61539046,8.337e-05,2]
[421319581,1777429832911,-2288.61539046,8.337e-05,2]
[421319582,1777429832923,-2288.61539046,8.337e-05,2]
[421319583,1777429832932,-2288.61539046,8.337e-05,2]
[421319584,1777429832943,-2288.61539046,8.337e-05,2]
[421319585,1777429832953,-2288.61539046,8.337e-05,2]
[421319586,1777429832962,-2288.61539046,8.337e-05,2]
[421319587,1777429832972,-2288.61539046,8.337e-05,2]
[421319588,1777429832982,-2288.61539046,8.337e-05,2]
[421319589,1777429832991,-2288.61539046,8.337e-05,2]
[421319590,1777429833001,-2288.61539046,8.337e-05,2]
[421319591,1777429833011,-2288.61539046,8.337e-05,2]
[421319592,1777429833020,-2288.61539046,8.337e-05,2]
[421319593,1777429833030,-2288.61539046,8.337e-05,2]
[421319594,1777429833040,-2288.61539046,8.337e-05,2]
[421319595,1777429833050,-2288.61539046,8.337e-05,2]
[421319596,1777429833059,-2288.61539046,8.337e-05,2]
[421319597,1777429833072,-2288.61539046,8.337e-05,2]
[421319598,1777429833082,-2288.61539046,8.337e-05,2]
[421319599,1777429833092,-2288.61539046,8.337e-05,2]
[421319600,1777429833102,-2288.61539046,8.337e-05,2]
[421319601,1777429833111,-2255.92088487,8.337e-05,2]
[421319602,1777429833121,-2255.92088487,8.337e-05,2]
[421319603,1777429833130,-2255.92088487,8.337e-05,2]
[421319604,1777429833140,-2255.92088487,8.337e-05,2]
[421319605,1777429833150,-2255.92088487,8.337e-05,2]
[421319606,1777429833159,-2255.92088487,8.337e-05,2]
[421319607,1777429833169,-2255.92088487,8.337e-05,2]
[421319608,1777429833178,-2255.92088487,8.337e-05,2]
[421319609,1777429833188,-2255.92088487,8.337e-05,2]
[421319610,1777429833198,-2255.92088487,8.337e-05,2]
[421319611,1777429833207,-2255.92088487,8.337e-05,2]
[421319612,1777429833217,-2255.92088487,8.337e-05,2]
[421319613,1777429833230,-2255.92088487,8.337e-05,2]
[421319614,1777429833241,-2255.92088487,8.337e-05,2]
[421319615,1777429833251,-2255.92088487,8.337e-05,2]
[421319616,1777429833261,-2255.92088487,8.337e-05,2]
[421319617,1777429833271,-2255.92088487,8.337e-05,2]
[421319618,1777429833281,-2255.92088487,8.337e-05,2]
[421319619,1777429833292,-2255.92088487,8.337e-05,2]
[421319620,1777429833301,-2255.92088487,8.337e-05,2]
[421319621,1777429833311,-2255.92088487,8.337e-05,2]
[421319622,1777429833322,-2255.92088487,8.337e-05,2]
[421319623,1777429833332,-2255.92088487,8.337e-05,2]
[421319624,1777429833342,-2255.92088487,8.337e-05,2]
[421319625,1777429833352,-2255.92088487,8.337e-05,2]
[421319626,1777429833362,-2255.92088487,8.337e-05,2]
[421319627,1777429833372,-300.0,8.337e-05,2]
[421319628,1777429833381,-1200.0,8.337e-05,2]
[421319629,1777429833390,-300.0,8.337e-05,2]
[421319630,1777429833401,-150.0,8.337e-05,2]
[421319631,1777429833412,-297.32419767,8.337e-05,2]
[421319632,1777429833422,-99250.01954405,8.338e-05,2]
[421319633,1777429833436,-17424.17364242,8.338e-05,2]
[421319634,1777429833447,-252783.70302679,8.338e-05,2]
[421319635,1777429833459,-728.743811,8.338e-05,2]
[421319636,1777429833475,-1700.23783598,8.338e-05,2]
[421319637,1777429833487,-491.75,8.338e-05,2]
[421319638,1777429833499,-498.60816711,8.338e-05,2]
[421319640,1777429838452,-10077.89671165,8.338e-05,2]
[421319641,1777429838511,-7860.46543182,8.338e-05,2]
[421319642,1777429838572,-336.22096291,8.338e-05,2]
[421319643,1777429838585,-1331.50731239,8.338e-05,2]
[421319644,1777429838687,-2119.34644157,8.338e-05,2]
[421319719,1777429840502,500.0,8.337e-05,2]
[421319720,1777429840515,-1181.0,8.338e-05,2]
[421319721,1777429840527,-1136.0,8.338e-05,2]
[421319722,1777429840571,-36394.7523573,8.338e-05,2]
[421319723,1777429840584,-2027.67609915,8.338e-05,2]
[421319724,1777429840687,-20232.96582522,8.338e-05,2]
[421319725,1777429841078,-1596.28143934,8.338e-05,2]
[421319738,1777429846206,-3390.32109516,8.338e-05,2]
[421319739,1777429846218,-1119.91477009,8.338e-05,2]
[421319740,1777429846624,-509.0,8.338e-05,2]
[421319741,1777429846850,-411.13,8.296e-05,2]
[421319742,1777429846860,-1655.088,8.338e-05,2]
[421319745,1777429928607,1100.66693265,8.433e-05,3]
[421319746,1777430308612,-4500.01,8.178e-05,2]
[421319747,1777430308828,-952.6432,8.178e-05,2]
[421319748,1777430308860,-256.0,8.178e-05,2]
[421319749,1777430308892,-300.0,8.235e-05,2]
[421319750,1777430308919,-500.0,8.236e-05,2]
[421319751,1777430308988,-982.7236,8.236e-05,2]
[421319752,1777430309021,-217.2764,8.236e-05,2]
[421319753,1777430309052,-300.0,8.236e-05,2]
[421319754,1777430309080,-300.0,8.236e-05,2]
[421319755,1777430309106,-1200.0,8.237e-05,2]
[421319756,1777430309134,-300.0,8.237e-05,2]
[421319757,1777430309217,-840.1754,8.238e-05,2]
[421319758,1777430309287,-3319.6592,8.238e-05,2]
[421319759,1777430309296,-365.4572,8.238e-05,2]
[421319760,1777430311871,-5000.01,8.238e-05,2]
[421319761,1777430311885,-1422.3731,8.238e-05,2]
[421319762,1777430311895,-3577.6369,8.238e-05,2]
[421319763,1777430311915,-3267.2107,8.238e-05,2]
[421319764,1777430311924,-200.42,8.264e-05,2]
[421319765,1777430311935,-151.0,8.335e-05,2]
[421319766,1777430311945,-150.0,8.336e-05,2]
[421319767,1777430311955,-1231.3793,8.337e-05,2]
[421319768,1777430311970,-5000.01,8.337e-05,2]
[421319769,1777430409961,198.3246,8.078e-05,2]
[421319770,1777430612374,-300.0,8.236e-05,2]
[421319771,1777430628448,-300.0,8.237e-05,2]
[421319772,1777430628480,-1200.0,8.237e-05,2]
[421319773,1777430628513,-300.0,8.237e-05,2]
[421319774,1777430628545,-150.0,8.237e-05,2]
[421319775,1777430628578,-257.0,8.237e-05,2]
[421319776,1777430628607,-2287.6191,8.238e-05,2]
[421319777,1777430628761,-812.4472,8.238e-05,2]
[421319778,1777430631280,-10000.01,8.238e-05,2]
[421319779,1777430643346,-300.0,8.237e-05,2]
[421319780,1777430643393,-9400.01,8.238e-05,2]
[421319781,1777430646554,-10000.01,8.238e-05,2]
[421319782,1777430646765,-10000.01,8.238e-05,2]
[421319783,1777430646875,-10000.01,8.238e-05,2]
[421319784,1777430646991,-10000.01,8.238e-05,2]
[421319785,1777430647108,-10000.01,8.238e-05,2]
[421319786,1777430647243,-10000.01,8.238e-05,2]
[421319787,1777430647361,-1264.967,8.238e-05,2]
[421319788,1777430647394,-682.2357,8.238e-05,2]
[421319789,1777430647434,-6105.6046,8.238e-05,2]
[421319790,1777430647473,-4060.36624995,8.238e-05,2]
[421319791,1777430647507,-257.0,8.238e-05,2]
[421319792,1777430647592,-1365.2775001,8.328e-05,2]
[421319793,1777430658441,-10000.01,8.328e-05,2]
[421319794,1777430661735,-10000.01,8.328e-05,2]
[421319795,1777430662124,-1464.83945263,8.328e-05,2]
[421319796,1777430665377,7070.33109474,8.138e-05,2]
[421319797,1777430665404,10000.01,8.138e-05,2]
[421319798,1777430665431,10000.01,8.138e-05,2]
[421319799,1777430665457,10000.01,8.138e-05,2]
[421319800,1777430665484,10000.01,8.138e-05,2]
[421319801,1777430665512,10000.01,8.138e-05,2]
[421319802,1777430665539,10000.01,8.138e-05,2]
[421319803,1777430665565,10000.01,8.138e-05,2]
[421319804,1777430665591,10000.01,8.138e-05,2]
[421319805,1777430671336,-2929.67890526,8.138e-05,2]
[421319806,1777430671397,-10000.01,8.138e-05,2]
[421319807,1777430671516,-10000.01,8.138e-05,2]
[421319808,1777430671658,-10000.01,8.138e-05,2]
[421319809,1777430776085,-300.0,8.136e-05,2]
[421319810,1777430776116,-1200.0,8.137e-05,2]
[421319811,1777430776147,-300.0,8.137e-05,2]
[421319812,1777430776176,-150.0,8.137e-05,2]
[421319813,1777430776206,-300.0,8.137e-05,2]
[421319814,1777430776303,-500.01,8.138e-05,2]
[421319815,1777430776327,-5000.01,8.138e-05,2]
[421319816,1777430776416,-5000.01,8.138e-05,2]
[421319817,1777430776525,-5000.01,8.138e-05,2]
[421319818,1777430778078,-5000.01,8.138e-05,2]
[421319819,1777430778192,-5000.01,8.138e-05,2]
[421319820,1777430778324,-5000.01,8.138e-05,2]
[421319821,1777430778435,-5000.01,8.138e-05,2]
[421319829,1777431031910,-2287.07372706,8.132e-05,2]
[421319830,1777431031922,-256.0,8.132e-05,2]
[421319831,1777431031932,-150.0,8.137e-05,2]
[421319832,1777431031943,-300.0,8.137e-05,2]
[421319833,1777431031952,-1200.0,8.137e-05,2]
[421319834,1777431031962,-300.0,8.137e-05,2]
[421319835,1777431031972,-250.0,8.137e-05,2]
[421319836,1777431031982,-9153.27446443,8.138e-05,2]
[421319837,1777431032014,-247415.67303557,8.138e-05,2]
[421319838,1777431032025,-4578.4219,8.238e-05,2]
[421319839,1777431032036,-4034.05252928,8.238e-05,2]
[421319840,1777431032047,-432.16055907,8.247e-05,2]
[421319841,1777431032057,-1000.0,8.327e-05,2]
[421319842,1777431032068,-1428.38747117,8.333e-05,2]
[421319843,1777431032079,-743.50770149,8.333e-05,2]
[421319844,1777431032089,-200.0,8.333e-05,2]
[421319845,1777431032099,-9552.16786547,8.333e-05,2]
[421319846,1777431032113,-151.0,8.333e-05,2]
[421319847,1777431032123,-151.0,8.333e-05,2]
[421319848,1777431032133,-279.9045709,8.333e-05,2]
[421319849,1777431032143,-174.61919141,8.333e-05,2]
[421319850,1777431032153,-235.75327194,8.333e-05,2]
[421319851,1777431032162,-244.476143,8.333e-05,2]
[421319852,1777431032172,-253.52176029,8.333e-05,2]